bitfinex/quotes_BTCUSD_20250508
["timestamp","ask_amount","ask_price","bid_price","bid_amount"]
[1746678259630,0.45820184,99386.0,99384.0,0.00010019]
[1746678259830,0.45820184,99386.0,99384.0,0.00110019]
[1746678260432,0.20123761,99385.0,99384.0,0.00110019]
[1746678260663,0.20123761,99385.0,99384.0,0.00010019]
[1746678260864,0.20223761,99385.0,99384.0,0.00010019]
[1746678261619,0.001,99385.0,99384.0,0.00010019]
[1746678262655,0.001,99385.0,99384.0,0.00110019]
[1746678264027,0.00807999,99385.0,99384.0,0.01977423]
[1746678265193,0.001,99385.0,99384.0,0.01977423]
[1746678265920,0.001,99385.0,99384.0,0.00715415]
[1746678266908,0.001,99385.0,99384.0,0.02582819]
[1746678267152,0.0080739,99385.0,99384.0,0.02582819]
[1746678267526,0.20931151,99385.0,99384.0,0.02582819]
[1746678268474,0.31110563,99385.0,99384.0,0.02582819]
[1746678268615,0.32750563,99385.0,99384.0,0.02582819]
[1746678268818,0.32043173,99385.0,99384.0,0.01977423]
[1746678269043,0.32043173,99385.0,99384.0,0.00110019]
[1746678269635,0.3275067,99385.0,99384.0,0.00110019]
[1746678272495,0.3111067,99385.0,99384.0,0.00110019]
[1746678272792,0.3111067,99385.0,99384.0,0.01976215]
[1746678274914,0.30403173,99385.0,99384.0,0.00110019]
[1746678275672,0.31110747,99385.0,99384.0,0.01976657]
[1746678278098,0.31110747,99385.0,99384.0,0.02583217]
[1746678278658,0.10986986,99385.0,99384.0,0.02583217]
[1746678278889,0.10986986,99385.0,99384.0,0.2270718]
[1746678278890,0.00807574,99385.0,99384.0,0.2270718]
[1746678279982,0.001,99385.0,99384.0,0.2270718]
[1746678280815,0.001,99385.0,99384.0,0.20840542]
[1746678281573,0.001,99385.0,99384.0,0.22707708]
[1746678286670,0.001,99385.0,99384.0,0.20840542]
[1746678287459,0.001,99385.0,99384.0,0.22707526]
[1746678288806,0.001,99385.0,99384.0,0.23640785]
[1746678290465,0.001,99385.0,99384.0,0.23640136]
[1746678291280,0.001,99385.0,99384.0,0.03516173]
[1746678291936,0.001,99385.0,99384.0,0.02909613]
[1746678292143,0.001,99385.0,99384.0,0.03512768]
[1746678292790,0.001,99385.0,99384.0,0.01646433]
[1746678292991,0.001,99385.0,99384.0,0.00713174]
[1746678293218,0.001,99385.0,99384.0,0.02579741]
[1746678293435,0.001,99385.0,99384.0,0.03513028]
[1746678294237,0.001,99385.0,99384.0,0.03513017]
[1746678301254,0.35634773,99386.0,99385.0,0.20123761]
[1746678301465,0.35634773,99386.0,99385.0,0.23283761]
[1746678301670,0.35634773,99386.0,99385.0,0.68068605]
[1746678301986,0.0001,99400.0,99399.0,0.57370926]
[1746678302495,0.0001,99400.0,99399.0,0.57975692]
[1746678302724,0.0001,99400.0,99399.0,0.59842259]
[1746678303481,0.0011,99400.0,99399.0,0.60642259]
[1746678303693,0.0011,99400.0,99399.0,0.25032259]
[1746678304090,0.0011,99400.0,99399.0,0.23392259]
[1746678306628,0.0011,99400.0,99399.0,0.26472259]
[1746678312046,0.0011,99400.0,99399.0,0.60472259]
[1746678312496,0.0011,99400.0,99399.0,0.70651671]
[1746678312718,0.0011,99400.0,99399.0,1.12305948]
[1746678313666,0.0011,99400.0,99399.0,0.12902402]
[1746678313880,0.0011,99400.0,99399.0,0.13103562]
[1746678314328,0.0011,99400.0,99399.0,0.33224488]
[1746678314548,0.0011,99400.0,99399.0,0.33023328]
[1746678316787,0.0011,99400.0,99399.0,0.36103328]
[1746678317845,0.0011,99400.0,99399.0,0.33023328]
[1746678319060,0.0011,99400.0,99399.0,0.67023328]
[1746678324281,0.0011,99400.0,99399.0,0.33023328]
[1746678324483,0.0176,99400.0,99399.0,0.12902402]
[1746678324714,0.0333,99400.0,99399.0,0.12902402]
[1746678326061,0.0333,99400.0,99399.0,0.14764592]
[1746678327071,0.0011,99400.0,99399.0,0.14764592]
[1746678327277,0.0011,99400.0,99399.0,0.14965783]
[1746678327599,0.0011,99400.0,99399.0,0.15896135]
[1746678330531,0.0172,99400.0,99399.0,0.15896135]
[1746678330737,0.0336,99400.0,99399.0,0.15694944]
[1746678331166,0.23480724,99400.0,99399.0,0.15694944]
[1746678331557,0.33660136,99400.0,99399.0,0.1509849]
[1746678331760,0.33660136,99400.0,99399.0,0.16086649]
[1746678331980,0.33660136,99400.0,99399.0,0.1509849]
[1746678332193,0.33560136,99400.0,99399.0,0.16086649]
[1746678332404,0.33560136,99400.0,99399.0,0.14168138]
[1746678332637,0.43153284,99400.0,99399.0,0.15156297]
[1746678332815,0.43153284,99400.0,99399.0,0.14168138]
[1746678333175,0.33560136,99400.0,99399.0,0.12305948]
[1746678333578,0.34266527,99400.0,99399.0,0.12305948]
[1746678333795,0.34366527,99400.0,99399.0,0.12505948]
[1746678333994,0.34466527,99400.0,99399.0,0.12505948]
[1746678334576,0.34366527,99400.0,99399.0,0.12305948]
[1746678334776,0.34466527,99400.0,99399.0,0.12405948]
[1746678335379,0.34366527,99400.0,99399.0,0.12305948]
[1746678335588,0.34666527,99400.0,99399.0,0.12305948]
[1746678335990,0.34566527,99400.0,99399.0,0.12305948]
[1746678336429,0.34866527,99400.0,99399.0,0.12305948]
[1746678338241,0.39152215,99400.0,99399.0,0.12305948]
[1746678338788,0.0061,99400.0,99399.0,0.12305948]
[1746678338990,0.0061,99400.0,99399.0,0.12507139]
[1746678339190,0.0031,99400.0,99399.0,0.18058691]
[1746678339392,0.0031,99400.0,99399.0,0.19921448]
[1746678339603,0.0071,99400.0,99399.0,0.19921448]
[1746678340018,0.0001,99400.0,99399.0,0.19921448]
[1746678340246,0.0051,99400.0,99399.0,0.20221448]
[1746678340809,0.0001,99400.0,99399.0,0.20221448]
[1746678341207,0.0011,99400.0,99399.0,0.20421448]
[1746678342137,0.0011,99400.0,99399.0,0.54421448]
[1746678342438,0.0011,99400.0,99399.0,0.54220257]
[1746678344576,0.0011,99400.0,99399.0,0.60309288]
[1746678345945,0.08093152,99429.0,99428.0,0.20115058]
[1746678346145,0.18272564,99429.0,99428.0,0.20115058]
[1746678346345,0.18272564,99429.0,99428.0,0.00991276]
[1746678346575,0.19842564,99429.0,99428.0,0.01862757]
[1746678346777,0.19842564,99429.0,99428.0,0.02854033]
[1746678347152,0.19887929,99429.0,99428.0,0.02854033]
[1746678347359,0.20487929,99429.0,99428.0,0.02854033]
[1746678347707,0.20087929,99429.0,99428.0,0.02854033]
[1746678348491,0.21417929,99429.0,99428.0,0.02854033]
[1746678348967,0.13624777,99429.0,99428.0,0.02954033]
[1746678349166,0.13624777,99429.0,99428.0,0.01091276]
[1746678349368,0.13824777,99429.0,99428.0,0.01091276]
[1746678349590,0.13524777,99429.0,99428.0,0.00991276]
[1746678349830,0.13824777,99429.0,99428.0,0.01091276]
[1746678350043,0.13824777,99429.0,99428.0,0.001]
[1746678350248,0.13824777,99429.0,99428.0,0.01091276]
[1746678350450,0.13824777,99429.0,99428.0,0.001]
[1746678353322,0.10724777,99429.0,99428.0,0.001]
[1746678353533,0.10724777,99429.0,99428.0,0.01079442]
[1746678353733,0.10724777,99429.0,99428.0,0.001]
[1746678353888,0.10724777,99429.0,99428.0,0.01079442]
[1746678354097,0.10724777,99429.0,99428.0,0.001]
[1746678354295,0.10724777,99429.0,99428.0,0.01079442]
[1746678354491,0.10724777,99429.0,99428.0,0.001]
[1746678354693,0.10724777,99429.0,99428.0,0.01079442]
[1746678355016,0.10724777,99429.0,99428.0,0.001]
[1746678355194,0.10724777,99429.0,99428.0,0.01076897]
[1746678355381,0.10724777,99429.0,99428.0,0.001]
[1746678355580,0.10724777,99429.0,99428.0,0.01076897]
[1746678355778,0.10724777,99429.0,99428.0,0.001]
[1746678356122,0.00545365,99429.0,99428.0,0.001]
[1746678356320,0.00545365,99429.0,99428.0,0.01076364]
[1746678357220,0.00545365,99429.0,99428.0,0.02939121]
[1746678357415,0.00245365,99429.0,99428.0,0.02839121]
[1746678357690,0.00045365,99429.0,99428.0,0.02839121]
[1746678358751,0.00145365,99429.0,99428.0,0.02939121]
[1746678359427,0.00145365,99429.0,99428.0,0.04212449]
[1746678360187,0.00145365,99429.0,99428.0,0.02939121]
[1746678361409,0.2342022,99429.0,99428.0,0.02939121]
[1746678361563,0.03305365,99429.0,99428.0,0.02939121]
[1746678361763,0.13484777,99429.0,99428.0,0.001]
[1746678361964,0.13484777,99429.0,99428.0,0.01074693]
[1746678362292,0.13484777,99429.0,99428.0,0.001]
[1746678366615,0.19157834,99429.0,99428.0,0.001]
[1746678367139,0.13484777,99429.0,99428.0,0.001]
[1746678369074,0.14190728,99429.0,99428.0,0.001]
[1746678369492,0.12570728,99429.0,99428.0,0.001]
[1746678369702,0.12570728,99429.0,99428.0,0.01964822]
[1746678369903,0.11864777,99429.0,99428.0,0.02939515]
[1746678370424,0.10324777,99429.0,99428.0,0.02939515]
[1746678372217,0.11031695,99429.0,99428.0,0.02939515]
[1746678375613,0.00852283,99429.0,99428.0,0.02939515]
[1746678376137,0.00145365,99429.0,99428.0,0.02939515]
[1746678376962,0.00145365,99429.0,99428.0,0.23054573]
[1746678377948,0.00145365,99429.0,99428.0,0.26294573]
[1746678379744,0.00145365,99429.0,99428.0,0.04539515]
[1746678379950,0.00145365,99429.0,99428.0,0.02939515]
[1746678380620,0.01675365,99429.0,99428.0,0.02939515]
[1746678381043,0.11854777,99429.0,99428.0,0.02939515]
[1746678381362,0.33479632,99429.0,99428.0,0.01964822]
[1746678381755,0.33479632,99429.0,99428.0,0.02930582]
[1746678383745,0.33479632,99429.0,99428.0,0.01964822]
[1746678384408,0.33479632,99429.0,99428.0,0.001]
[1746678384865,0.34186234,99429.0,99428.0,0.001]
[1746678387929,0.37296891,99429.0,99428.0,0.001]
[1746678388797,0.72750976,99429.0,99428.0,0.001]
[1746678389358,0.01006026,99401.0,99397.0,0.20121294]
[1746678389560,0.0158,99401.0,99397.0,0.20121294]
[1746678389765,0.0158,99401.0,99398.0,0.00966029]
[1746678390407,0.0158,99401.0,99399.0,0.20120926]
[1746678390751,0.001,99401.0,99399.0,0.20120926]
[1746678390901,0.001,99401.0,99400.0,0.00966029]
[1746678391097,0.02506005,99403.0,99400.0,0.00966029]
[1746678391374,0.001,99401.0,99400.0,0.00966029]
[1746678391694,0.001,99401.0,99400.0,0.00896029]
[1746678392544,0.01006005,99403.0,99400.0,0.00896029]
[1746678392926,0.01106005,99403.0,99400.0,0.01496029]
[1746678393210,0.001,99403.0,99401.0,0.20120521]
[1746678393632,0.001,99403.0,99402.0,0.00954362]
[1746678394113,0.0161,99404.0,99402.0,0.00954362]
[1746678394319,0.01006026,99401.0,99397.0,0.20121274]
[1746678394524,0.01006026,99401.0,99391.0,0.01006127]
[1746678394525,0.02596026,99401.0,99400.0,0.003]
[1746678394957,0.0159,99401.0,99400.0,0.003]
[1746678395155,0.0159,99401.0,99400.0,0.01267958]
[1746678395375,0.0159,99401.0,99400.0,0.003]
[1746678395617,0.0322,99401.0,99400.0,0.01267958]
[1746678395795,0.01006117,99392.0,99388.0,0.20123153]
[1746678395994,0.02596107,99393.0,99388.0,0.21362331]
[1746678396191,0.02596107,99393.0,99389.0,0.00967958]
[1746678396392,0.0159,99392.0,99389.0,0.00967958]
[1746678396751,0.0156,99391.0,99389.0,0.00967958]
[1746678396956,0.16676764,99390.0,99389.0,0.00967958]
[1746678397359,0.20122951,99389.0,99388.0,0.003]
[1746678397706,0.02616279,99376.0,99371.0,0.002]
[1746678397905,0.0161,99376.0,99372.0,0.20126393]
[1746678398107,0.01006279,99376.0,99372.0,0.00977148]
[1746678398308,0.01006289,99375.0,99371.0,0.002]
[1746678398530,0.0161,99374.0,99373.0,0.00977148]
[1746678398735,0.0100637,99367.0,99364.0,0.01239919]
[1746678398973,0.01006329,99371.0,99365.0,0.21134201]
[1746678399244,0.01006329,99371.0,99366.0,0.0100638]
[1746678399460,0.01006329,99371.0,99367.0,0.20127406]
[1746678399622,0.01006258,99378.0,99371.0,0.20126489]
[1746678399785,0.001,99374.0,99373.0,0.002]
[1746678399989,0.13270229,99374.0,99373.0,0.002]
[1746678400195,0.13270229,99374.0,99373.0,0.01177148]
[1746678400196,0.14810229,99374.0,99373.0,0.01177148]
[1746678400392,0.010064,99364.0,99359.0,0.01006451]
[1746678400589,0.0100641,99363.0,99359.0,0.01006451]
[1746678400792,0.0100642,99362.0,99360.0,0.00977148]
[1746678401035,0.0100642,99362.0,99358.0,0.02249589]
[1746678401754,0.0100642,99362.0,99358.0,0.01006461]
[1746678401957,0.04528729,99361.0,99358.0,0.01006461]
[1746678402458,0.0100642,99362.0,99358.0,0.01006461]
[1746678402602,0.0100642,99362.0,99357.0,0.01006471]
[1746678402808,0.0100642,99362.0,99359.0,0.001]
[1746678403008,0.0110642,99362.0,99358.0,0.01077148]
[1746678403206,0.01113258,99362.0,99358.0,0.001]
[1746678403577,0.06293877,99361.0,99358.0,0.01215254]
[1746678403726,0.01113258,99362.0,99358.0,0.01215254]
[1746678403931,0.20128621,99361.0,99359.0,0.001]
[1746678404144,0.01006583,99346.0,99341.0,0.01206633]
[1746678404354,0.01006583,99346.0,99341.0,0.002]
[1746678404355,0.01006603,99344.0,99341.0,0.002]
[1746678404563,0.01006603,99344.0,99342.0,0.00977148]
[1746678404770,0.03422414,99344.0,99342.0,0.00977148]
[1746678405598,0.01006603,99344.0,99342.0,0.00977148]
[1746678406154,0.01106603,99344.0,99342.0,0.01077148]
[1746678406559,0.01006603,99344.0,99342.0,0.00977148]
[1746678406880,0.01106603,99344.0,99342.0,0.01077148]
[1746678407276,0.001,99344.0,99342.0,0.01277148]
[1746678409880,0.001,99344.0,99343.0,0.20132269]
[1746678410090,0.001,99344.0,99343.0,0.23563569]
[1746678410290,0.001,99344.0,99343.0,0.24364466]
[1746678411353,0.001,99344.0,99343.0,0.22994466]
[1746678411940,0.01006532,99351.0,99347.0,0.01006572]
[1746678412589,0.01006532,99351.0,99348.0,0.01002197]
[1746678412829,0.01006532,99351.0,99348.0,0.00725154]
[1746678412830,0.04428625,99350.0,99348.0,0.00725154]
[1746678413011,0.04428625,99350.0,99348.0,0.00956023]
[1746678413422,0.2113728,99351.0,99348.0,0.00956023]
[1746678414041,0.2113728,99351.0,99348.0,0.01056023]
[1746678414042,0.2275728,99351.0,99348.0,0.01056023]
[1746678414244,0.21751053,99349.0,99348.0,0.01056023]
[1746678414452,0.01006603,99344.0,99341.0,0.002]
[1746678414647,0.01006542,99350.0,99344.0,0.21138629]
[1746678414799,0.01006542,99350.0,99346.0,0.01006583]
[1746678414800,0.01006552,99349.0,99346.0,0.01006583]
[1746678415007,0.01006532,99351.0,99347.0,0.01006572]
[1746678415360,0.001,99349.0,99348.0,0.001]
[1746678415765,0.001,99349.0,99348.0,0.01156023]
[1746678416015,0.01874007,99349.0,99348.0,0.001]
[1746678416234,0.01006593,99345.0,99341.0,0.002]
[1746678416450,0.01006593,99345.0,99341.0,0.01206633]
[1746678416689,0.01006593,99345.0,99342.0,0.00956023]
[1746678416927,0.06500322,99344.0,99342.0,0.00956023]
[1746678417285,0.01874007,99343.0,99341.0,0.002]
[1746678417677,0.01874007,99343.0,99341.0,0.004]
[1746678417879,0.01874007,99342.0,99341.0,0.004]
[1746678418647,0.01874007,99342.0,99341.0,0.005]
[1746678418857,0.06963033,99342.0,99341.0,0.005]
[1746678419062,0.06963033,99342.0,99341.0,0.004]
[1746678419272,0.01874007,99342.0,99341.0,0.002]
[1746678419525,0.01974007,99342.0,99341.0,0.003]
[1746678420263,0.01974007,99342.0,99341.0,0.006]
[1746678420463,0.01974007,99342.0,99341.0,0.01556023]
[1746678420650,0.01974007,99342.0,99341.0,0.006]
[1746678420917,0.01974007,99342.0,99341.0,0.01556023]
[1746678421125,0.06600402,99342.0,99341.0,0.006]
[1746678421334,0.01974007,99342.0,99341.0,0.01556023]
[1746678421477,0.22106478,99342.0,99341.0,0.006]
[1746678421678,0.23616478,99342.0,99341.0,0.01556023]
[1746678421849,0.22106478,99342.0,99341.0,0.006]
[1746678422686,0.01974007,99342.0,99341.0,0.006]
[1746678422886,0.06915331,99342.0,99341.0,0.01556649]
[1746678423710,0.01974007,99342.0,99341.0,0.01556649]
[1746678427000,0.02915046,99342.0,99341.0,0.01556649]
[1746678428968,0.02915046,99342.0,99341.0,0.03136649]
[1746678429156,0.02915046,99342.0,99341.0,0.04907953]
[1746678429365,0.01041039,99342.0,99341.0,0.04907953]
[1746678430012,0.001,99342.0,99341.0,0.04907953]
[1746678430421,0.001,99342.0,99341.0,0.03327953]
[1746678431681,0.001,99342.0,99341.0,0.01757953]
[1746678432093,0.0292746,99342.0,99341.0,0.01556649]
[1746678432292,0.03634333,99342.0,99341.0,0.01556649]
[1746678433685,0.03634333,99342.0,99341.0,0.01757958]
[1746678434063,0.01749359,99342.0,99341.0,0.01757958]
[1746678434273,0.01042486,99342.0,99341.0,0.01757958]
[1746678434484,0.001,99342.0,99341.0,0.01757958]
[1746678435283,0.001,99342.0,99341.0,0.04967958]
[1746678436600,0.001,99342.0,99341.0,0.03307958]
[1746678438022,0.001,99342.0,99341.0,0.04827958]
[1746678438626,0.001,99342.0,99341.0,0.4900737]
[1746678438826,0.001,99342.0,99341.0,0.48806061]
[1746678439029,0.00707213,99361.0,99358.0,0.01006461]
[1746678439309,0.00651127,99366.0,99359.0,0.01006451]
[1746678439525,0.09099522,99367.0,99362.0,0.0100642]
[1746678439879,0.08093152,99367.0,99364.0,0.20128014]
[1746678440290,0.08093152,99367.0,99364.0,0.21134414]
[1746678440614,0.001,99366.0,99365.0,0.00976582]
[1746678440979,0.001,99367.0,99366.0,0.20127609]
[1746678441702,0.001,99367.0,99366.0,0.21104191]
[1746678441859,0.001,99367.0,99366.0,0.00976582]
[1746678442059,0.0174,99367.0,99366.0,0.00976582]
[1746678442317,0.001,99367.0,99364.0,0.20128014]
[1746678442540,0.0164,99367.0,99366.0,0.00976582]
[1746678442714,0.0164,99367.0,99365.0,0.01076582]
[1746678442928,0.0174,99367.0,99365.0,0.00976582]
[1746678443099,0.0164,99366.0,99365.0,0.00976582]
[1746678444681,0.0164,99366.0,99363.0,0.20128163]
[1746678445013,0.0164,99366.0,99365.0,0.20127811]
[1746678445556,0.0164,99366.0,99365.0,0.2109996]
[1746678445776,0.26009157,99366.0,99365.0,0.01072149]
[1746678445975,0.26009157,99366.0,99365.0,0.001]
[1746678446531,0.23377609,99366.0,99365.0,0.001]
[1746678446731,0.24383989,99366.0,99358.0,0.20139218]
[1746678446954,0.010064,99364.0,99358.0,0.20139218]
[1746678447543,0.0100641,99363.0,99358.0,0.20139218]
[1746678447944,0.0250641,99363.0,99358.0,0.20139218]
[1746678448152,0.0250642,99362.0,99358.0,0.20139218]
[1746678448563,0.015,99362.0,99358.0,0.20139218]
[1746678448931,0.015,99361.0,99358.0,0.20239218]
[1746678449384,0.015,99361.0,99358.0,0.20139218]
[1746678449808,0.015,99361.0,99358.0,0.20239218]
[1746678450218,0.015,99361.0,99358.0,0.20139218]
[1746678450634,0.001,99361.0,99360.0,0.01006441]
[1746678451405,0.001,99361.0,99359.0,0.20129027]
[1746678451580,0.0165,99360.0,99359.0,0.20129027]
[1746678452418,0.0259198,99360.0,99359.0,0.20129027]
[1746678452615,0.0259198,99360.0,99358.0,0.20139138]
[1746678453855,0.0100642,99362.0,99358.0,0.20139138]
[1746678454030,0.001,99360.0,99359.0,0.001]
[1746678455323,0.001,99360.0,99358.0,0.20139138]
[1746678455324,0.01884144,99364.0,99361.0,0.20128529]
[1746678455525,0.0309,99363.0,99361.0,0.20128529]
[1746678455734,0.0152,99362.0,99361.0,0.20128529]
[1746678456436,0.02462228,99362.0,99361.0,0.20128529]
[1746678457237,0.00942228,99362.0,99361.0,0.20228529]
[1746678457427,0.00942228,99362.0,99361.0,0.2042979]
[1746678457769,0.0100636,99368.0,99364.0,0.20127884]
[1746678458028,0.0164,99367.0,99364.0,0.20127884]
[1746678458228,0.0162,99366.0,99364.0,0.20127884]
[1746678458557,0.01006339,99370.0,99364.0,0.20127884]
[1746678458932,0.001,99368.0,99364.0,0.20227884]
[1746678459156,0.002,99368.0,99364.0,0.20227884]
[1746678459352,0.001,99368.0,99364.0,0.20227884]
[1746678459554,0.01649305,99369.0,99366.0,0.20127573]
[1746678459754,0.00942451,99369.0,99366.0,0.21133953]
[1746678459962,0.00942451,99369.0,99368.0,0.20127203]
[1746678460158,0.00706854,99374.0,99373.0,0.20126191]
[1746678460699,0.01713082,99381.0,99377.0,0.20125253]
[1746678460834,0.01006258,99378.0,99373.0,0.21095299]
[1746678461036,0.0158,99376.0,99373.0,0.21095299]
[1746678461241,0.0158,99376.0,99375.0,0.20125618]
[1746678461590,0.0158,99376.0,99375.0,0.21094726]
[1746678462741,0.0338,99376.0,99375.0,0.21194726]
[1746678462901,0.0178,99376.0,99375.0,0.21194726]
[1746678463105,0.0198,99376.0,99375.0,0.21194726]
[1746678465723,0.004,99376.0,99375.0,0.21194726]
[1746678469614,0.0194,99376.0,99375.0,0.21194726]
[1746678469822,0.0349,99376.0,99375.0,0.21194726]
[1746678471893,0.0349,99376.0,99375.0,0.01069108]
[1746678472092,0.004,99376.0,99375.0,0.01069108]
[1746678472380,0.004,99376.0,99375.0,0.04380344]
[1746678472558,0.001858,99376.0,99375.0,0.50586134]
[1746678472741,0.04,99400.0,99398.0,0.20121129]
[1746678472935,0.04,99400.0,99399.0,0.38454023]
[1746678473138,0.04,99400.0,99399.0,0.38252834]
[1746678473537,0.04,99400.0,99399.0,0.36622834]
[1746678474052,0.04,99400.0,99399.0,0.34962834]
[1746678474251,0.0404536,99400.0,99399.0,0.34962834]
[1746678474426,0.0404536,99400.0,99399.0,0.35262834]
[1746678475208,0.0404536,99400.0,99399.0,0.01262834]
[1746678475528,0.0414536,99400.0,99399.0,0.01662834]
[1746678481327,0.0723536,99400.0,99399.0,0.01662834]
[1746678484198,0.0723536,99400.0,99399.0,0.01362834]
[1746678484327,0.0713536,99400.0,99399.0,0.00962834]
[1746678484528,0.0723536,99400.0,99399.0,0.01362834]
[1746678485497,0.0723536,99400.0,99399.0,0.01662834]
[1746678486011,0.0414536,99400.0,99399.0,0.01662834]
[1746678499598,0.0565536,99400.0,99399.0,0.01662834]
[1746678499931,0.0718536,99400.0,99399.0,0.007]
[1746678500283,0.0718536,99400.0,99399.0,0.01635872]
[1746678500460,0.0565536,99400.0,99399.0,0.01635872]
[1746678501423,0.27276084,99400.0,99399.0,0.01635872]
[1746678501645,0.33259802,99400.0,99399.0,0.007]
[1746678501799,0.43439214,99400.0,99399.0,0.007]
[1746678502200,0.38397861,99400.0,99399.0,0.007]
[1746678503162,0.40890349,99400.0,99399.0,0.003]
[1746678503527,0.40990349,99400.0,99399.0,0.005]
[1746678504467,0.40990349,99400.0,99399.0,0.002]
[1746678504670,0.40990349,99400.0,99399.0,0.003]
[1746678504910,0.01006188,99385.0,99381.0,0.01006228]
[1746678505080,0.0155,99384.0,99381.0,0.01006228]
[1746678505285,0.0152,99382.0,99381.0,0.01006228]
[1746678505593,0.02462365,99382.0,99381.0,0.01006228]
[1746678505745,0.02462365,99382.0,99381.0,0.01950139]
[1746678505946,0.02462365,99382.0,99381.0,0.02350139]
[1746678506286,0.02462365,99382.0,99381.0,0.02650139]
[1746678506515,0.02462365,99382.0,99381.0,0.02250139]
[1746678506788,0.02562365,99382.0,99381.0,0.02650139]
[1746678507164,0.02562365,99382.0,99381.0,0.01643911]
[1746678507369,0.04152365,99382.0,99381.0,0.01643911]
[1746678507630,0.04152365,99382.0,99381.0,0.004]
[1746678507781,0.04152365,99382.0,99381.0,0.01744699]
[1746678508185,0.01042365,99382.0,99381.0,0.05044699]
[1746678508385,0.01042365,99382.0,99381.0,0.49425316]
[1746678508581,0.01042365,99382.0,99381.0,0.92508196]
[1746678508805,0.00942365,99382.0,99381.0,0.92108196]
[1746678509033,0.01042365,99382.0,99381.0,0.92508196]
[1746678509164,0.01882978,99422.0,99399.0,0.3704]
[1746678509600,0.01882978,99421.0,99399.0,0.37988028]
[1746678510180,0.01882978,99421.0,99399.0,0.4816744]
[1746678510387,0.01882978,99427.0,99399.0,0.4816744]
[1746678510792,0.02588823,99426.0,99399.0,0.4816744]
[1746678511235,0.01005813,99422.0,99399.0,0.4665744]
[1746678511565,0.0414536,99400.0,99399.0,0.37078028]
[1746678511847,0.0414536,99400.0,99399.0,0.35548028]
[1746678514185,0.0414536,99400.0,99399.0,0.01548028]
[1746678515285,0.0414536,99400.0,99399.0,0.01348028]
[1746678515494,0.0414536,99400.0,99399.0,0.01549217]
[1746678515703,0.0414536,99400.0,99399.0,0.01649217]
[1746678516011,0.0404536,99400.0,99399.0,0.01249217]
[1746678516502,0.0404536,99400.0,99399.0,0.04459217]
[1746678517363,0.0404536,99400.0,99399.0,0.02849217]
[1746678517799,0.0404536,99400.0,99399.0,0.01249217]
[1746678518439,0.03946717,99400.0,99399.0,0.01249217]
[1746678519742,0.03946717,99400.0,99399.0,0.01048028]
[1746678519913,0.03946717,99400.0,99399.0,0.01249214]
[1746678520258,0.03946717,99400.0,99399.0,0.01048028]
[1746678532317,0.03946717,99400.0,99399.0,0.00772487]
[1746678532816,0.03946717,99400.0,99397.0,0.01006066]
[1746678532990,0.03946717,99400.0,99399.0,0.00772487]
[1746678533198,0.03946717,99400.0,99398.0,0.20121017]
[1746678533398,0.03946717,99400.0,99399.0,0.00772487]
[1746678535660,0.03946717,99400.0,99399.0,0.00972487]
[1746678537566,0.07206717,99400.0,99399.0,0.00972487]
[1746678537789,0.03946717,99400.0,99399.0,0.21093413]
[1746678539679,0.03946717,99400.0,99399.0,0.24293413]
[1746678540380,0.03946717,99400.0,99399.0,0.34472825]
[1746678540988,0.03946717,99400.0,99399.0,0.34272825]
[1746678541433,0.04046717,99400.0,99399.0,0.21293413]
[1746678541596,0.04046717,99400.0,99399.0,0.21493413]
[1746678560048,0.04046717,99400.0,99399.0,0.20503413]
[1746678560267,0.04046717,99400.0,99399.0,0.21342214]
[1746678560465,0.04046717,99400.0,99399.0,0.2114103]
[1746678563277,0.05626717,99400.0,99399.0,0.2114103]
[1746678568785,0.05626717,99400.0,99399.0,0.21358543]
[1746678568967,0.07286717,99400.0,99399.0,0.21358543]
[1746678572186,0.08230038,99400.0,99399.0,0.21358543]
[1746678573257,0.04990038,99400.0,99399.0,0.21358543]
[1746678573442,0.06580038,99400.0,99399.0,0.21358543]
[1746678573648,0.08140038,99400.0,99399.0,0.21358543]
[1746678574629,0.07196717,99400.0,99399.0,0.21358543]
[1746678577297,0.05636717,99400.0,99399.0,0.21358543]
[1746678577949,0.04046717,99400.0,99399.0,0.21358543]
[1746678587281,0.04046717,99400.0,99399.0,0.28838031]
[1746678588447,0.04046717,99400.0,99399.0,0.21358543]
[1746678597586,0.0498946,99400.0,99399.0,0.21358543]
[1746678598966,0.04046717,99400.0,99399.0,0.21358543]
[1746678599194,0.04046717,99400.0,99399.0,1.10647955]
[1746678599422,0.015,99427.0,99424.0,0.01005793]
[1746678599662,0.015,99434.0,99426.0,0.21121235]
[1746678599883,0.0159,99437.0,99434.0,0.21119536]
[1746678600110,0.0159,99446.0,99445.0,0.20111601]
[1746678600317,0.04181278,99446.0,99445.0,0.20111601]
[1746678600515,0.02296712,99446.0,99445.0,0.20111601]
[1746678600761,0.04181263,99446.0,99445.0,0.20111601]
[1746678600976,0.02591263,99446.0,99442.0,0.20112164]
[1746678601179,0.0162,99445.0,99442.0,0.20112164]
[1746678601391,0.00942258,99445.0,99442.0,0.20112164]
[1746678601591,0.00942258,99445.0,99442.0,0.20112116]
[1746678601592,0.0155,99444.0,99442.0,0.20112116]
[1746678601907,0.00942258,99445.0,99440.0,0.2011263]
[1746678602116,0.00942258,99445.0,99442.0,0.20112177]
[1746678602527,0.00942258,99444.0,99442.0,0.20112177]
[1746678602746,0.0304,99443.0,99440.0,0.2011263]
[1746678602947,0.00942258,99444.0,99442.0,0.20112217]
[1746678603187,0.0304,99443.0,99442.0,0.18112217]
[1746678603576,0.03982258,99443.0,99442.0,0.18112217]
[1746678603784,0.23243439,99436.0,99424.0,0.01005793]
[1746678604153,0.23243439,99436.0,99424.0,0.0117232]
[1746678604357,0.33422851,99436.0,99424.0,0.0117232]
[1746678604911,0.34128298,99436.0,99424.0,0.0117232]
[1746678605110,0.37051751,99436.0,99420.0,0.20116507]
[1746678605318,0.37051751,99436.0,99423.0,0.01005803]
[1746678605558,0.37051751,99436.0,99419.0,0.4183]
[1746678605779,0.37051762,99436.0,99419.0,0.4183]
[1746678606009,0.45081135,99436.0,99408.0,0.01005955]
[1746678606210,0.45281135,99436.0,99409.0,0.21124847]
[1746678606461,0.45281135,99436.0,99407.0,0.21125192]
[1746678606713,0.45181135,99436.0,99408.0,0.01005955]
[1746678606890,0.45481135,99436.0,99407.0,0.21125192]
[1746678607098,0.45481135,99436.0,99408.0,0.01005955]
[1746678607302,0.45881135,99436.0,99409.0,0.2112481]
[1746678607501,0.47091843,99436.0,99410.0,0.01164595]
[1746678607828,0.47091843,99436.0,99410.0,0.01005935]
[1746678608027,0.3906247,99436.0,99410.0,0.01005935]